fUST/lending_fUST_20250301
["ID","MTS","AMOUNT","RATE_DAILY","PERIOD"]
[354897470,1740802238658,-1346.47,0.00039999,2]
[354897471,1740802238668,-500.0,0.00039999,2]
[354897472,1740802238677,-1169.46,0.00039999,2]
[354897473,1740802238687,-500.0,0.00039999,2]
[354897474,1740802238697,-500.0,0.00039999,2]
[354897475,1740802238707,-500.0,0.00039999,2]
[354897476,1740802238718,-1083.17,0.00039999,2]
[354897477,1740802238728,-500.0,0.00039999,2]
[354897478,1740802238739,-500.0,0.00039999,2]
[354897479,1740802238748,-54151.77,0.00039999,2]
[354897480,1740802238758,-500.0,0.00039999,2]
[354897481,1740802238768,-500.0,0.00039999,2]
[354897482,1740802238778,-500.0,0.00039999,2]
[354897483,1740802238788,-500.0,0.00039999,2]
[354897484,1740802238799,-1952.28,0.00039999,2]
[354897485,1740802238810,-500.0,0.00039999,2]
[354897486,1740802238820,-2404.21,0.00039999,2]
[354897487,1740802238831,-745.89,0.00039999,2]
[354897488,1740802238841,-500.0,0.00039999,2]
[354897489,1740802238851,-500.0,0.00039999,2]
[354897490,1740802238861,-500.0,0.00039999,2]
[354897491,1740802238870,-500.0,0.00039999,2]
[354897492,1740802238880,-600.37,0.00039999,2]
[354897493,1740802238890,-757.31,0.00039999,2]
[354897494,1740802238900,-3716.79,0.00039999,2]
[354897495,1740802238910,-500.0,0.00039999,2]
[354897496,1740802238919,-500.0,0.00039999,2]
[354897497,1740802238929,-500.0,0.00039999,2]
[354897498,1740802238943,-500.0,0.00039999,2]
[354897499,1740802238952,-500.0,0.00039999,2]
[354897500,1740802238961,-500.0,0.00039999,2]
[354897501,1740802238971,-502.89216686,0.00039999,2]
[354897502,1740802238982,-500.0,0.00039999,2]
[354897503,1740802238992,-500.0,0.00039999,2]
[354897504,1740802239002,-277.89555097,0.00039999,2]
[354897505,1740802239012,-478.32740067,0.00039999,2]
[354897506,1740802239022,-5827.81,0.00039999,2]
[354897507,1740802239033,-500.0,0.00039999,2]
[354897508,1740802239043,-500.0,0.00039999,2]
[354897509,1740802239053,-500.0,0.00039999,2]
[354897510,1740802239062,-500.0,0.00039999,2]
[354897511,1740802239072,-3343.31,0.00039999,2]
[354897512,1740802239081,-282.03434974,0.00039999,2]
[354897513,1740802239091,-500.0,0.00039999,2]
[354897514,1740802239101,-500.0,0.00039999,2]
[354897515,1740802239110,-500.0,0.00039999,2]
[354897516,1740802239119,-500.0,0.00039999,2]
[354897517,1740802239130,-2131.37,0.00039999,5]
[354897518,1740802239139,-500.0,0.00039999,2]
[354897519,1740802239149,-500.0,0.00039999,2]
[354897520,1740802239159,-500.0,0.00039999,2]
[354897521,1740802239169,-500.0,0.00039999,2]
[354897522,1740802239179,-500.0,0.00039999,2]
[354897523,1740802239189,-500.0,0.00039999,2]
[354897524,1740802239199,-2719.38,0.00039999,2]
[354897525,1740802239208,-500.0,0.00039999,2]
[354897526,1740802239218,-165.40084644,0.00039999,10]
[354897527,1740802239227,-501.89073655,0.00039999,2]
[354897528,1740802239236,-500.0,0.00039999,2]
[354897529,1740802239254,-500.0,0.00039999,2]
[354897530,1740802239274,-500.0,0.00039999,2]
[354897531,1740802239292,-500.0,0.00039999,2]
[354897532,1740802239313,-500.0,0.00039999,2]
[354897533,1740802239335,-500.0,0.00039999,2]
[354897534,1740802239354,-500.0,0.00039999,2]
[354897535,1740802239374,-548.36,0.00039999,2]
[354897536,1740802239390,-4045.94,0.00039999,2]
[354897537,1740802239406,-592.93,0.00039999,2]
[354897538,1740802239427,-500.0,0.00039999,2]
[354897539,1740802239446,-500.0,0.00039999,2]
[354897540,1740802239462,-9999.57,0.00039999,2]
[354897541,1740802239477,-500.0,0.00039999,2]
[354897542,1740802239495,-500.0,0.00039999,2]
[354897543,1740802239511,-500.0,0.00039999,2]
[354897544,1740802239527,-500.48703748,0.00039999,2]
[354897545,1740802239542,-2054.58,0.00039999,2]
[354897546,1740802239560,-501.85814812,0.00039999,2]
[354897547,1740802239575,-500.0,0.00039999,2]
[354897548,1740802239591,-690.84,0.00039999,120]
[354897549,1740802239606,-500.0,0.00039999,2]
[354897550,1740802239621,-500.0,0.00039999,2]
[354897551,1740802239636,-1731.94,0.00039999,2]
[354897552,1740802239651,-500.0,0.00039999,2]
[354897554,1740802239667,-500.0,0.00039999,2]
[354897555,1740802239682,-1335.47,0.00039999,2]
[354897556,1740802239698,-500.0,0.00039999,2]
[354897558,1740802239712,-500.0,0.00039999,2]
[354897559,1740802239727,-500.0,0.00039999,2]
[354897560,1740802239742,-2023.1,0.00039999,2]
[354897561,1740802239757,-500.0,0.00039999,2]
[354897562,1740802239772,-500.0,0.00039999,2]
[354897565,1740802239786,-500.0,0.00039999,2]
[354897567,1740802239801,-770.48,0.00039999,2]
[354897569,1740802239816,-500.0,0.00039999,2]
[354897572,1740802239831,-500.0,0.00039999,2]
[354897575,1740802239847,-603.85,0.00039999,2]
[354897577,1740802239863,-500.0,0.00039999,2]
[354897580,1740802239877,-500.0,0.00039999,2]
[354897583,1740802239893,-984.55,0.00039999,2]
[354897585,1740802239908,-1307.66,0.00039999,2]
[354897588,1740802239922,-500.0,0.00039999,2]
[354897590,1740802239939,-752.29,0.00039999,2]
[354897593,1740802239954,-500.0,0.00039999,2]
[354897595,1740802239969,-500.0,0.00039999,2]
[354897598,1740802239985,-500.0,0.00039999,2]
[354897600,1740802240000,-379.18371342,0.00039999,2]
[354897603,1740802240016,-500.0,0.00039999,2]
[354897606,1740802240032,-2182.45,0.00039999,2]
[354897608,1740802240047,-500.0,0.00039999,2]
[354897611,1740802240063,-500.0,0.00039999,2]
[354897613,1740802240078,-1433.51,0.00039999,2]
[354897616,1740802240092,-500.0,0.00039999,2]
[354897619,1740802240108,-3038.04,0.00039999,2]
[354897621,1740802240122,-500.0,0.00039999,2]
[354897624,1740802240136,-500.0,0.00039999,2]
[354897626,1740802240152,-500.0,0.00039999,2]
[354897627,1740802240167,-500.0,0.00039999,2]
[354897628,1740802240183,-47112.11155235,0.0004,120]
[354897629,1740802240198,-1000.0,0.0004,3]
[354897630,1740802240213,-5000.0,0.0004,120]
[354897631,1740802240228,-506.29649749,0.0004,120]
[354897632,1740802240244,-20000.0,0.0004,120]
[354897634,1740802240259,-20000.0,0.0004,120]
[354897637,1740802240275,-476.4023641,0.0004,120]
[354897639,1740802240291,-1000.0,0.0004,120]
[354897641,1740802240309,-500.0,0.0004,120]
[354897643,1740802240323,-500.0,0.00040272,2]
[354897645,1740802240339,-500.0,0.00040273,2]
[354897648,1740802240354,-856.45,0.00040273,2]
[354897649,1740802240369,-500.0,0.00040273,2]
[354897651,1740802240384,-1293.39,0.00040273,2]
[354897652,1740802240399,-500.0,0.00040273,2]
[354897654,1740802240415,-500.0,0.00040273,2]
[354897656,1740802240429,-500.0,0.00040273,2]
[354897657,1740802240444,-3468.18,0.00040273,2]
[354897658,1740802240459,-846.83,0.00040273,2]
[354897659,1740802240474,-500.0,0.00040273,2]
[354897660,1740802240489,-2336.65,0.00040273,2]
[354897661,1740802240504,-500.0,0.00040273,2]
[354897662,1740802240518,-593.87,0.00040273,2]
[354897663,1740802240534,-500.0,0.00040273,2]
[354897664,1740802240548,-1088.4,0.00040273,2]
[354897665,1740802240561,-500.0,0.00040273,2]
[354897666,1740802240570,-708.94,0.00040273,2]
[354897667,1740802240580,-2853.7,0.00040273,2]
[354897668,1740802240590,-500.0,0.00040273,2]
[354897669,1740802240836,-500.0,0.00040273,2]
[354897670,1740802240869,-567.8561225,0.00040273,2]
[354897671,1740802240879,-2562.08,0.00040273,2]
[354897672,1740802240889,-500.0,0.00040273,2]
[354897673,1740802240898,-500.0,0.00040273,2]
[354897674,1740802240908,-500.0,0.00040273,2]
[354897675,1740802240918,-500.0,0.00040273,2]
[354897676,1740802240927,-500.0,0.00040273,2]
[354897677,1740802240940,-882.46,0.00040273,2]
[354897678,1740802240950,-1881.98,0.00040273,2]
[354897679,1740802240960,-500.0,0.00040273,2]
[354897680,1740802240969,-500.0,0.00040273,2]
[354897681,1740802240980,-500.0,0.00040273,2]
[354897682,1740802240989,-500.0,0.00040273,2]
[354897683,1740802240998,-583.06,0.00040273,2]
[354897684,1740802241008,-500.0,0.00040273,2]
[354897685,1740802241019,-1133.39,0.00040273,2]
[354897686,1740802241029,-1242.77,0.00040273,2]
[354897687,1740802241038,-500.0,0.00040273,2]
[354897688,1740802241047,-500.0,0.00040273,2]
[354897689,1740802241059,-766.81,0.00040273,2]
[354897690,1740802241068,-500.0,0.00040273,2]
[354897691,1740802241078,-500.0,0.00040273,2]
[354897692,1740802241088,-500.0,0.00040273,2]
[354897693,1740802241097,-500.0,0.00040273,2]
[354897694,1740802241107,-500.0,0.00040273,2]
[354897695,1740802241117,-500.0,0.00040273,2]
[354897696,1740802241127,-606.35,0.00040273,2]
[354897697,1740802241136,-505.191609,0.00040273,2]
[354897698,1740802241145,-500.0,0.00040273,2]
[354897699,1740802241156,-2461.09,0.00040273,2]
[354897700,1740802241166,-500.0,0.00040273,2]
[354897701,1740802241175,-1346.47,0.00040273,2]
[354897702,1740802241185,-500.0,0.00040273,2]
[354897703,1740802241196,-1169.46,0.00040273,2]
[354897704,1740802241206,-500.0,0.00040273,2]
[354897705,1740802241215,-500.0,0.00040273,2]
[354897706,1740802241225,-500.0,0.00040273,2]
[354897707,1740802241235,-1083.17,0.00040273,2]
[354897708,1740802241245,-500.0,0.00040273,2]
[354897709,1740802241254,-500.0,0.00040273,2]
[354897710,1740802241264,-54151.77,0.00040273,2]
[354897711,1740802241273,-500.0,0.00040273,2]
[354897712,1740802241283,-500.0,0.00040273,2]
[354897713,1740802241292,-500.0,0.00040273,2]
[354897714,1740802241302,-500.0,0.00040273,2]
[354897715,1740802241311,-1952.28,0.00040273,2]
[354897716,1740802241321,-500.0,0.00040273,2]
[354897717,1740802241331,-2404.21,0.00040273,2]
[354897718,1740802241340,-745.89,0.00040273,2]
[354897719,1740802241350,-500.0,0.00040273,2]
[354897720,1740802241360,-500.0,0.00040273,2]
[354897721,1740802241370,-500.0,0.00040273,2]
[354897722,1740802241380,-500.0,0.00040273,2]
[354897723,1740802241389,-600.37,0.00040273,2]
[354897724,1740802241399,-757.31,0.00040273,2]
[354897725,1740802241409,-3716.79,0.00040273,2]
[354897726,1740802241419,-500.0,0.00040273,2]
[354897727,1740802241430,-500.0,0.00040273,2]
[354897728,1740802241440,-500.0,0.00040273,2]
[354897729,1740802241450,-500.0,0.00040273,2]
[354897730,1740802241459,-500.0,0.00040273,2]
[354897731,1740802241470,-500.0,0.00040273,2]
[354897732,1740802241479,-500.0,0.00040273,2]
[354897733,1740802241489,-500.0,0.00040273,2]
[354897734,1740802241499,-5827.81,0.00040273,2]
[354897735,1740802241508,-500.0,0.00040273,2]
[354897736,1740802241518,-500.0,0.00040273,2]
[354897737,1740802241527,-500.0,0.00040273,2]
[354897738,1740802241537,-500.0,0.00040273,2]
[354897739,1740802241547,-3343.31,0.00040273,2]
[354897740,1740802241559,-500.0,0.00040273,2]
[354897741,1740802241569,-500.0,0.00040273,2]
[354897742,1740802241578,-500.0,0.00040273,2]
[354897743,1740802241589,-500.0,0.00040273,2]
[354897744,1740802241599,-2131.37,0.00040273,5]
[354897745,1740802241608,-445.18743021,0.00040273,2]
[354897746,1740802241618,-500.0,0.00040273,2]
[354897747,1740802241627,-500.0,0.00040273,2]
[354897748,1740802241637,-500.0,0.00040273,2]
[354897749,1740802241646,-500.0,0.00040273,2]
[354897750,1740802241656,-500.0,0.00040273,2]
[354897751,1740802241665,-2719.38,0.00040273,2]
[354897752,1740802241675,-500.0,0.00040273,2]
[354897753,1740802241684,-500.0,0.00040273,2]
[354897754,1740802241693,-500.0,0.00040273,2]
[354897755,1740802241703,-500.0,0.00040273,2]
[354897756,1740802241713,-161.55409881,0.00040273,2]
[354897757,1740802241723,-500.0,0.00040273,2]
[354897758,1740802241733,-500.0,0.00040273,2]
[354897759,1740802241743,-548.36,0.00040273,2]
[354897760,1740802241752,-4045.94,0.00040273,2]
[354897761,1740802241761,-592.93,0.00040273,2]
[354897762,1740802241771,-510.80846564,0.00040273,2]
[354897763,1740802241780,-500.0,0.00040273,2]
[354897764,1740802241789,-9999.57,0.00040273,2]
[354897765,1740802241799,-500.0,0.00040273,2]
[354897766,1740802241809,-500.0,0.00040273,2]
[354897767,1740802241818,-500.0,0.00040273,2]
[354897768,1740802241828,-2054.58,0.00040273,2]
[354897769,1740802241837,-500.0,0.00040273,2]
[354897770,1740802241847,-690.84,0.00040273,120]
[354897771,1740802241857,-500.0,0.00040273,2]
[354897772,1740802241867,-343.43110475,0.00040273,2]
[354897773,1740802241876,-1731.94,0.00040273,2]
[354897774,1740802241886,-500.0,0.00040273,2]
[354897775,1740802241895,-500.0,0.00040273,2]
[354897776,1740802241905,-1335.47,0.00040273,2]
[354897777,1740802241915,-500.0,0.00040273,2]
[354897778,1740802241926,-500.0,0.00040273,2]
[354897779,1740802241939,-500.0,0.00040273,2]
[354897780,1740802241949,-2023.1,0.00040273,2]
[354897781,1740802241959,-500.0,0.00040273,2]
[354897782,1740802241969,-500.0,0.00040273,2]
[354897783,1740802241979,-501.97877792,0.00040273,2]
[354897784,1740802241989,-770.48,0.00040273,2]
[354897785,1740802241998,-500.0,0.00040273,2]
[354897786,1740802242008,-500.0,0.00040273,2]
[354897787,1740802242019,-603.85,0.00040273,2]
[354897788,1740802242028,-500.0,0.00040273,2]
[354897789,1740802242038,-500.0,0.00040273,2]
[354897790,1740802242048,-984.55,0.00040273,2]
[354897791,1740802242058,-1307.66,0.00040273,2]
[354897792,1740802242068,-500.0,0.00040273,2]
[354897793,1740802242078,-752.29,0.00040273,2]
[354897794,1740802242087,-500.0,0.00040273,2]
[354897795,1740802242097,-500.0,0.00040273,2]
[354897796,1740802242107,-500.0,0.00040273,2]
[354897797,1740802242117,-500.0,0.00040273,2]
[354897798,1740802242127,-2182.45,0.00040273,2]
[354897799,1740802242137,-500.0,0.00040273,2]
[354897800,1740802242147,-500.0,0.00040273,2]
[354897801,1740802242157,-1433.51,0.00040273,2]
[354897802,1740802242167,-500.0,0.00040273,2]
[354897803,1740802242176,-3038.04,0.00040273,2]
[354897804,1740802242186,-500.0,0.00040273,2]
[354897805,1740802242196,-500.0,0.00040273,2]
[354897806,1740802242207,-500.0,0.00040273,2]
[354897807,1740802242216,-500.0,0.00040273,2]
[354897808,1740802242226,-528.74505089,0.00040546,2]
[354897809,1740802242236,-500.0,0.00040547,2]
[354897810,1740802242245,-856.45,0.00040547,2]
[354897811,1740802242255,-500.0,0.00040547,2]
[354897812,1740802242265,-1293.39,0.00040547,2]
[354897813,1740802242275,-500.0,0.00040547,2]
[354897814,1740802242284,-338.76712693,0.00040547,2]
[354897815,1740802242294,-500.0,0.00040547,2]
[354897816,1740802242307,-3468.18,0.00040547,2]
[354897817,1740802242316,-846.83,0.00040547,2]
[354897818,1740802242326,-500.0,0.00040547,2]
[354897819,1740802242336,-2336.65,0.00040547,2]
[354897820,1740802242346,-500.0,0.00040547,2]
[354897821,1740802242355,-593.87,0.00040547,2]
[354897822,1740802242366,-417.61003245,0.00040547,2]
[354897823,1740802242376,-1088.4,0.00040547,2]
[354897824,1740802242386,-708.94,0.00040547,2]
[354897825,1740802242397,-500.0,0.00040547,2]
[354897826,1740802242407,-2853.7,0.00040547,2]
[354897827,1740802242417,-500.0,0.00040547,2]
[354897828,1740802242426,-500.0,0.00040547,2]
[354897829,1740802242435,-2562.08,0.00040547,2]
[354897830,1740802242445,-500.0,0.00040547,2]
[354897831,1740802242455,-500.0,0.00040547,2]
[354897832,1740802242465,-500.0,0.00040547,2]
[354897833,1740802242475,-500.0,0.00040547,2]
[354897834,1740802242484,-500.0,0.00040547,2]
[354897835,1740802242495,-882.46,0.00040547,2]
[354897836,1740802242504,-1881.98,0.00040547,2]
[354897837,1740802242514,-500.0,0.00040547,2]
[354897838,1740802242524,-500.0,0.00040547,2]
[354897839,1740802242534,-500.0,0.00040547,2]
[354897840,1740802242544,-583.06,0.00040547,2]
[354897841,1740802242555,-500.0,0.00040547,2]
[354897843,1740802242565,-500.0,0.00040547,2]
[354897844,1740802242575,-1133.39,0.00040547,2]
[354897845,1740802242584,-1242.77,0.00040547,2]
[354897846,1740802242594,-500.0,0.00040547,2]
[354897847,1740802242603,-500.0,0.00040547,2]
[354897848,1740802242613,-766.81,0.00040547,2]
[354897850,1740802242622,-500.0,0.00040547,2]
[354897852,1740802242632,-500.0,0.00040547,2]
[354897854,1740802242642,-500.0,0.00040547,2]
[354897855,1740802242652,-500.0,0.00040547,2]
[354897856,1740802242661,-505.1786092,0.00040547,2]
[354897857,1740802242672,-500.0,0.00040547,2]
[354897858,1740802242682,-606.35,0.00040547,2]
[354897859,1740802242691,-500.0,0.00040547,2]
[354897860,1740802242701,-2461.09,0.00040547,2]
[354897861,1740802242711,-500.0,0.00040547,2]
[354897862,1740802242721,-1346.47,0.00040547,2]
[354897864,1740802242730,-500.0,0.00040547,2]
[354897865,1740802242740,-1169.46,0.00040547,2]
[354897866,1740802242750,-500.0,0.00040547,2]
[354897867,1740802242760,-500.0,0.00040547,2]
[354897868,1740802242772,-500.0,0.00040547,2]
[354897869,1740802242782,-1083.17,0.00040547,2]
[354897871,1740802242792,-504.67756122,0.00040547,2]
[354897873,1740802242802,-500.0,0.00040547,2]
[354897874,1740802242812,-54151.77,0.00040547,2]
[354897875,1740802242822,-500.0,0.00040547,2]
[354897876,1740802242831,-500.0,0.00040547,2]
[354897877,1740802242840,-500.0,0.00040547,2]
[354897878,1740802242849,-500.0,0.00040547,2]
[354897879,1740802242858,-1952.28,0.00040547,2]
[354897880,1740802242868,-500.0,0.00040547,2]
[354897881,1740802242878,-2404.21,0.00040547,2]
[354897882,1740802242888,-745.89,0.00040547,2]
[354897883,1740802242898,-508.39751474,0.00040547,2]
[354897884,1740802242907,-500.0,0.00040547,2]
[354897885,1740802242917,-500.0,0.00040547,2]
[354897886,1740802242926,-502.93729605,0.00040547,2]
[354897887,1740802242939,-600.37,0.00040547,2]
[354897888,1740802242948,-757.31,0.00040547,2]
[354897889,1740802242958,-3716.79,0.00040547,2]
[354897890,1740802242967,-539.70988336,0.00040547,2]
[354897891,1740802242977,-500.0,0.00040547,2]
[354897892,1740802242987,-500.0,0.00040547,2]
[354897893,1740802242996,-500.0,0.00040547,2]
[354897894,1740802243006,-500.0,0.00040547,2]
[354897895,1740802243016,-505.41560755,0.00040547,2]
[354897896,1740802243027,-500.0,0.00040547,2]
[354897898,1740802243038,-470.39141204,0.00040547,2]
[354897900,1740802243048,-5827.81,0.00040547,2]
[354897902,1740802243058,-500.0,0.00040547,2]
[354897904,1740802243068,-500.0,0.00040547,2]
[354897905,1740802243078,-500.0,0.00040547,2]
[354897907,1740802243087,-500.0,0.00040547,2]
[354897908,1740802243098,-3343.31,0.00040547,2]
[354897909,1740802243108,-500.0,0.00040547,2]
[354897910,1740802243117,-500.0,0.00040547,2]
[354897912,1740802243127,-500.0,0.00040547,2]
[354897914,1740802243137,-500.0,0.00040547,2]
[354897916,1740802243147,-2131.37,0.00040547,5]
[354897918,1740802243156,-500.0,0.00040547,2]
[354897920,1740802243166,-505.90034123,0.00040547,2]
[354897922,1740802243175,-460.996841,0.00040547,2]
[354897924,1740802243185,-500.0,0.00040547,2]
[354897926,1740802243194,-500.0,0.00040547,2]
[354897928,1740802243204,-2719.38,0.00040547,2]
[354897929,1740802243213,-500.0,0.00040547,2]
[354897930,1740802243222,-500.0,0.00040547,2]
[354897931,1740802243232,-500.0,0.00040547,2]
[354897932,1740802243242,-500.0,0.00040547,2]
[354897933,1740802243252,-500.0,0.00040547,2]
[354897934,1740802243261,-500.0,0.00040547,2]
[354897935,1740802243271,-548.36,0.00040547,2]
[354897936,1740802243280,-4045.94,0.00040547,2]
[354897937,1740802243290,-592.93,0.00040547,2]
[354897938,1740802243301,-500.0,0.00040547,2]
[354897939,1740802243311,-9999.57,0.00040547,2]
[354897940,1740802243321,-500.0,0.00040547,2]
[354897941,1740802243331,-500.0,0.00040547,2]
[354897942,1740802243341,-500.0,0.00040547,2]
[354897943,1740802243350,-2054.58,0.00040547,2]
[354897944,1740802243360,-500.0,0.00040547,2]
[354897945,1740802243369,-690.84,0.00040547,120]
[354897946,1740802243379,-500.0,0.00040547,2]
[354897947,1740802243388,-1731.94,0.00040547,2]
[354897948,1740802243398,-500.0,0.00040547,2]
[354897949,1740802243408,-500.0,0.00040547,2]
[354897950,1740802243417,-1335.47,0.00040547,2]
[354897951,1740802243426,-500.0,0.00040547,2]
[354897952,1740802243436,-500.0,0.00040547,2]
[354897953,1740802243445,-502.14677056,0.00040547,2]
[354897954,1740802243455,-2023.1,0.00040547,2]
[354897955,1740802243464,-500.0,0.00040547,2]
[354897956,1740802243474,-500.0,0.00040547,2]
[354897957,1740802243483,-770.48,0.00040547,2]
[354897958,1740802243493,-500.0,0.00040547,2]
[354897959,1740802243502,-500.0,0.00040547,2]
[354897960,1740802243512,-603.85,0.00040547,2]
[354897961,1740802243521,-500.0,0.00040547,2]
[354897962,1740802243531,-500.0,0.00040547,2]
[354897963,1740802243541,-984.55,0.00040547,2]
[354897964,1740802243551,-1307.66,0.00040547,2]
[354897965,1740802243560,-494.63397292,0.00040547,2]
[354897966,1740802243569,-752.29,0.00040547,2]
[354897967,1740802243579,-248.27052954,0.00040547,2]
[354897968,1740802243588,-500.0,0.00040547,2]
[354897969,1740802243597,-500.0,0.00040547,2]
[354897970,1740802243607,-500.0,0.00040547,2]
[354897971,1740802243617,-2182.45,0.00040547,2]
[354897972,1740802243626,-500.0,0.00040547,2]
[354897973,1740802243772,-500.0,0.00040547,2]
[354897974,1740802243782,-1433.51,0.00040547,2]
[354897975,1740802243792,-500.0,0.00040547,2]
[354897976,1740802243802,-3038.04,0.00040547,2]
[354897977,1740802243812,-500.0,0.00040547,2]
[354897978,1740802243821,-500.0,0.00040547,2]
[354897979,1740802243830,-500.0,0.00040547,2]
[354897980,1740802243840,-500.0,0.00040547,2]
[354897981,1740802243849,-500.0,0.00040821,2]
[354897982,1740802243859,-856.45,0.00040821,2]
[354897983,1740802243868,-500.0,0.00040821,2]
[354897984,1740802243877,-1293.39,0.00040821,2]
[354897985,1740802243887,-507.26556762,0.00040821,2]
[354897986,1740802243896,-500.0,0.00040821,2]
[354897987,1740802243905,-3468.18,0.00040821,2]
[354897988,1740802243914,-846.83,0.00040821,2]
[354897989,1740802243924,-2336.65,0.00040821,2]
[354897990,1740802243935,-500.0,0.00040821,2]
[354897991,1740802243946,-500.0,0.00040821,2]
[354897992,1740802243955,-593.87,0.00040821,2]
[354897993,1740802243964,-1088.4,0.00040821,2]
[354897994,1740802243975,-708.94,0.00040821,2]
[354897995,1740802243984,-501.93678136,0.00040821,2]
[354897996,1740802243994,-2853.7,0.00040821,2]
[354897997,1740802244003,-500.0,0.00040821,2]
[354897998,1740802244014,-500.0,0.00040821,2]
[354897999,1740802244024,-2562.08,0.00040821,2]
[354898000,1740802244033,-500.0,0.00040821,2]
[354898001,1740802244043,-500.0,0.00040821,2]
[354898002,1740802244054,-500.0,0.00040821,2]
[354898003,1740802244064,-500.0,0.00040821,2]
[354898004,1740802244073,-500.0,0.00040821,2]
[354898005,1740802244083,-882.46,0.00040821,2]
[354898006,1740802244092,-1881.98,0.00040821,2]
[354898007,1740802244102,-514.09717767,0.00040821,2]
[354898008,1740802244112,-452.45438687,0.00040821,2]
[354898009,1740802244122,-500.0,0.00040821,2]
[354898010,1740802244131,-583.06,0.00040821,2]
[354898011,1740802244141,-510.39520217,0.00040821,2]
[354898012,1740802244151,-500.0,0.00040821,2]
[354898013,1740802244160,-1133.39,0.00040821,2]
[354898014,1740802244169,-1242.77,0.00040821,2]
[354898015,1740802244179,-500.0,0.00040821,2]
[354898016,1740802244189,-500.0,0.00040821,2]
[354898017,1740802244199,-766.81,0.00040821,2]
[354898018,1740802244209,-500.0,0.00040821,2]
[354898019,1740802244219,-500.0,0.00040821,2]
[354898020,1740802244229,-500.0,0.00040821,2]
[354898021,1740802244238,-500.0,0.00040821,2]
[354898022,1740802244248,-500.0,0.00040821,2]
[354898023,1740802244258,-606.35,0.00040821,2]
[354898024,1740802244267,-500.0,0.00040821,2]
[354898025,1740802244277,-2461.09,0.00040821,2]
[354898026,1740802244287,-500.0,0.00040821,2]
[354898027,1740802244296,-1346.47,0.00040821,2]
[354898028,1740802244308,-500.0,0.00040821,2]
[354898029,1740802244317,-1169.46,0.00040821,2]
[354898030,1740802244327,-500.0,0.00040821,2]
[354898031,1740802244338,-500.0,0.00040821,2]
[354898032,1740802244348,-500.0,0.00040821,2]
[354898033,1740802244358,-1083.17,0.00040821,2]
[354898034,1740802244367,-500.0,0.00040821,2]
[354898035,1740802244377,-54151.77,0.00040821,2]
[354898036,1740802244387,-500.0,0.00040821,2]
[354898037,1740802244397,-507.1778751,0.00040821,2]
[354898038,1740802244406,-500.0,0.00040821,2]
[354898039,1740802244416,-500.0,0.00040821,2]
[354898040,1740802244426,-1952.28,0.00040821,2]
[354898041,1740802244436,-500.0,0.00040821,2]
[354898042,1740802244447,-2404.21,0.00040821,2]
[354898043,1740802244456,-745.89,0.00040821,2]